bitfinex-derivatives/quotes_SOLF0:USTF0_20260107
["timestamp","ask_amount","ask_price","bid_price","bid_amount"]
[1767783923360,1.4174054,137.9,137.81,0.32378251]
[1767783924962,1.4174054,137.9,137.85,0.32378251]
[1767783925250,1.4174054,137.91,137.85,0.32378251]
[1767783926067,1.4174054,137.91,137.87,0.04649226]
[1767783926556,1.26265375,137.95,137.87,0.04649226]
[1767783926756,1.4174054,137.9,137.87,0.04649226]
[1767783928866,1.4174054,137.9,137.85,0.32378251]
[1767783929459,1.4174054,137.9,137.83,0.32378251]
[1767783930667,0.04598092,137.88,137.83,0.32378251]
[1767783934172,1.4174054,137.9,137.83,0.32378251]
[1767783946475,1.46353654,137.88,137.85,0.04632346]
[1767783946878,1.4174054,137.88,137.83,0.32378251]
[1767783947279,1.4174054,137.88,137.85,0.05391192]
[1767783947774,1.4174054,137.88,137.83,0.32378251]
[1767783947775,1.4174054,137.88,137.81,0.32025571]
[1767783948076,1.4174054,137.86,137.81,0.32025571]
[1767783949081,1.4174054,137.87,137.81,0.32025571]
[1767783949381,1.4174054,137.88,137.81,0.32025571]
[1767783949567,1.4174054,137.88,137.82,0.05002016]
[1767783950477,1.4174054,137.88,137.82,0.37027587]
[1767783951379,1.4174054,137.9,137.82,0.37027587]
[1767783951878,1.4174054,137.9,137.82,0.32025571]
[1767783952177,1.4174054,137.9,137.85,0.05104124]
[1767783953982,1.4174054,137.88,137.79,0.32025571]
[1767783955386,0.05556971,137.85,137.79,0.32025571]
[1767783955574,1.4174054,137.88,137.79,0.32025571]
[1767783955774,1.4174054,137.88,137.82,0.05380576]
[1767783956587,2.21319848,137.9,137.82,0.05380576]
[1767783956979,2.21319848,137.9,137.8,0.32025571]
[1767783957679,0.05047319,137.86,137.8,0.32025571]
[1767783967691,2.21319848,137.92,137.8,0.32025571]
[1767783967888,2.21319848,137.92,137.82,0.05086411]
[1767783968089,2.21319848,137.92,137.83,0.31985252]
[1767783969189,2.21319848,137.92,137.86,0.04784871]
[1767783970599,16.05058883,137.97,137.86,0.36770123]
[1767783971100,17.31303645,137.97,137.86,0.31985252]
[1767783971490,17.31303645,137.97,137.9,0.05220926]
[1767783971998,2.21319848,137.94,137.83,0.31985252]
[1767783972498,126.21319848,137.94,137.83,0.31985252]
[1767783973093,0.0538999,137.9,137.83,0.31985252]
[1767783974589,2.21319848,137.94,137.84,0.31985252]
[1767783975096,2.21319848,137.94,137.86,0.31985252]
[1767783976097,2.21319848,137.94,137.89,0.04803346]
[1767783984703,139.09983797,137.97,137.89,0.04803346]
[1767783984704,2.21319848,137.96,137.89,0.36788598]
[1767783989112,2.21319848,137.96,137.89,0.04803346]
[1767783992311,2.21319848,137.96,137.85,0.33341963]
[1767783992519,2.21319848,137.93,137.85,0.33341963]
[1767783993608,0.05191618,137.9,137.85,0.33341963]
[1767783995121,2.21319848,137.96,137.86,0.33341963]
[1767783995317,2.21319848,137.96,137.86,0.3801327]
[1767783995725,2.21319848,137.96,137.86,0.33341963]
[1767783996622,2.21319848,137.96,137.9,0.04807161]
[1767784003632,2.21319848,137.96,137.9,0.38149124]
[1767784003835,11.85419621,137.97,137.9,0.38149124]
[1767784006932,11.85419621,137.97,137.9,0.04807161]
[1767784007134,14.06739469,137.97,137.9,0.04807161]
[1767784007335,11.85419621,137.97,137.9,0.04807161]
[1767784009444,11.85419621,137.97,137.9,0.38149124]
[1767784018544,1.41439253,137.96,137.9,0.38149124]
[1767784019855,11.85419621,137.97,137.9,0.38149124]
[1767784023545,1.41439253,137.96,137.9,0.38149124]
[1767784025143,13.26858874,137.97,137.9,0.38149124]
[1767784029856,1.41439253,137.95,137.9,0.04807161]
[1767784030861,1.41439253,137.93,137.9,0.04807161]
[1767784033052,1.41439253,137.93,137.86,0.33238708]
[1767784033259,1.46731561,137.93,137.86,0.33238708]
[1767784034458,1.46731561,137.93,137.82,106.47]
[1767784034657,1.41439253,137.91,137.83,0.33238708]
[1767784035357,0.05386095,137.88,137.83,0.33238708]
[1767784038162,1.41439253,137.96,137.86,0.33238708]
[1767784038958,11.85419621,137.97,137.86,0.33238708]
[1767784039159,1.41439253,137.96,137.86,0.33238708]
[1767784039359,1.41439253,137.96,137.9,0.05382088]
[1767784039770,11.85419621,137.97,137.9,0.05382088]
[1767784042060,11.85419621,137.97,137.9,1.46821341]
[1767784042464,11.85419621,137.97,137.9,1.80060049]
[1767784048173,11.85419621,137.97,137.94,1.41439253]
[1767784048767,11.85419621,137.97,137.93,0.33238708]
[1767784048972,11.85419621,137.97,137.94,0.04596259]
[1767784050670,8.09561213,137.97,137.94,0.37834967]
[1767784051073,6.75888673,137.97,137.94,0.37834967]
[1767784051476,6.42470538,137.97,137.94,0.37834967]
[1767784051667,0.25078662,138.02,137.95,0.33238708]
[1767784052573,0.25078662,138.02,137.97,0.04604317]
[1767784062480,0.33038381,138.01,137.97,0.04604317]
[1767784062885,0.33038381,138.01,137.93,0.33489666]
[1767784067686,0.04920178,137.98,137.93,0.33489666]
[1767784076306,0.04920178,137.98,137.93,84.99489666]
[1767784076598,0.04920178,137.98,137.94,0.33489666]
[1767784078501,0.04920178,137.98,137.94,84.99489666]
[1767784081509,0.04920178,137.98,137.94,0.33489666]
[1767784081806,0.04920178,137.98,137.94,84.99489666]
[1767784082204,0.34045214,138.03,137.95,0.36900416]
[1767784082400,0.34045214,138.03,137.95,0.41777345]
[1767784084409,0.34045214,138.03,137.96,84.66]
[1767784085308,0.34045214,138.03,137.98,0.0518434]
[1767784087808,0.34045214,138.02,137.95,84.66]
[1767784088011,0.34045214,138.02,137.95,85.02900416]
[1767784088609,0.34045214,138.06,137.96,0.36900416]
[1767784101209,0.34045214,138.06,137.94,0.36900416]
[1767784114723,0.34045214,138.06,137.95,0.37367574]
[1767784136150,0.38340837,138.06,137.95,0.37367574]
[1767784140547,0.38340837,138.06,137.96,0.37367574]
[1767784149155,1.41293131,138.05,137.96,0.37367574]
[1767784149341,0.42773973,138.04,137.96,0.37367574]
[1767784149746,0.42773973,138.02,137.96,0.37367574]
[1767784151940,0.05287369,138.0,137.96,0.37367574]
[1767784159950,0.48061342,138.0,137.94,0.42866627]
[1767784160659,0.42773973,137.99,137.92,0.42866627]
[1767784161060,0.42773973,137.99,137.93,0.42866627]
[1767784161262,0.42773973,138.01,137.93,0.42866627]
[1767784161560,0.04803442,137.97,137.93,0.42866627]
[1767784161756,0.42773973,138.01,137.93,0.42866627]
[1767784161961,0.42773973,138.01,137.96,0.049675]
[1767784164563,0.42773973,138.0,137.96,0.049675]
[1767784171269,0.42773973,138.03,137.96,0.47834127]
[1767784179087,0.42237374,138.05,137.96,0.47834127]
[1767784179292,0.42237374,138.05,137.97,0.44679474]
[1767784179895,0.42237374,138.05,138.0,0.05212295]
[1767784184702,1.83530505,138.05,138.0,0.05212295]
[1767784186396,0.42237374,138.08,138.0,0.49891769]
[1767784186804,0.42237374,138.08,138.0,0.44679474]
[1767784187303,0.42237374,138.08,138.03,0.04963398]
[1767784203112,0.42237374,138.08,138.03,0.48902007]
[1767784204919,0.42237374,138.08,138.03,0.04963398]
[1767784228818,0.42237374,138.08,137.98,0.43938609]
[1767784229020,0.05327266,138.07,137.98,0.43938609]
[1767784229226,0.42683906,138.06,137.98,0.43938609]
[1767784230228,0.04797059,138.03,137.98,0.43938609]
[1767784234016,0.04797059,138.03,137.99,0.46123185]
[1767784248234,0.04797059,138.03,137.99,1.44]
[1767784248428,0.04797059,138.03,138.0,0.46123185]
[1767784251043,0.49844069,138.03,137.96,0.46123185]
[1767784251630,0.4504701,138.03,137.96,0.46123185]
[1767784251940,0.05091979,138.01,137.96,0.46123185]
[1767784264748,0.05091979,138.01,137.97,0.4250946]
[1767784288565,0.51235517,138.01,137.95,0.4250946]
[1767784289159,0.51235517,138.01,137.93,0.4250946]
[1767784289564,0.46143538,138.01,137.93,0.4250946]
[1767784289959,0.05044779,137.98,137.93,0.4250946]
[1767784293967,0.49307291,137.98,137.93,0.4250946]
[1767784310993,0.05044779,137.98,137.93,0.4250946]
[1767784311396,0.05044779,137.98,137.94,1.41289966]
[1767784312097,0.49307291,137.98,137.93,1.83799426]
[1767784313798,0.49307291,137.98,137.93,1.41289966]
[1767784313993,0.44262512,138.02,137.93,1.41289966]
[1767784314200,0.44262512,138.09,137.99,1.41289966]
[1767784315800,0.44262512,138.04,137.99,1.41289966]
[1767784317202,0.44262512,138.04,137.98,1.8809957]
[1767784317400,0.44262512,138.04,137.99,0.46809604]
[1767784317603,0.05434532,138.05,138.0,1.8809957]
[1767784318005,0.44262512,138.06,138.0,1.8809957]
[1767784318401,0.05051562,138.04,138.0,1.8809957]
[1767784318709,0.44262512,138.06,138.02,1.41289966]
[1767784322297,0.44262512,138.06,138.01,0.51914435]
[1767784323608,0.44145128,138.11,138.01,0.51914435]
[1767784324205,0.44145128,138.11,137.99,84.8]
[1767784324206,0.44145128,138.11,138.03,0.47647598]
[1767784324607,0.44145128,138.11,138.05,0.05233943]
[1767784334623,0.44145128,138.11,138.05,0.48849916]
[1767784340632,21.9995566,138.14,138.05,0.48849916]
[1767784340633,0.47588237,138.14,138.05,0.48849916]
[1767784341031,0.47588237,138.14,138.05,0.43615973]
[1767784341434,0.47588237,138.14,138.08,0.04774743]
[1767784341633,0.47588237,138.14,138.08,0.48390716]
[1767784349943,0.47588237,138.14,138.08,0.04774743]
[1767784362550,0.46773647,138.13,138.08,0.04774743]
[1767784367554,2.67375569,138.14,138.08,0.50698148]
[1767784368050,0.46773647,138.14,138.08,0.50698148]
[1767784378970,0.458647,138.16,138.08,0.50698148]
[1767784379361,0.458647,138.16,138.08,0.45923405]
[1767784379847,0.458647,138.16,138.11,0.05336035]
[1767784380362,0.458647,138.16,138.09,0.44575493]
[1767784380868,0.458647,138.16,138.12,0.04772686]
[1767784381861,0.458647,138.16,138.09,0.44575493]
[1767784382862,2.20601922,138.17,138.09,0.44575493]
[1767784383053,2.68019474,138.17,138.09,0.44575493]
[1767784383250,0.05289267,138.14,138.09,0.44575493]
[1767784389866,0.49691935,138.14,138.09,0.44575493]
[1767784390657,0.05289267,138.14,138.09,0.44575493]
[1767784391069,1.85445901,138.13,138.07,0.46110087]
[1767784392563,0.44402668,138.13,138.07,0.46110087]
[1767784392766,1.41043233,138.15,138.07,0.46110087]
[1767784393066,1.85445901,138.15,138.07,0.46110087]
[1767784397670,0.04660768,138.12,138.07,0.46110087]
[1767784399061,0.44402668,138.15,138.09,0.46110087]
[1767784405678,1.85445901,138.15,138.09,0.46110087]
[1767784411971,0.4491058,138.14,138.09,0.46110087]
[1767784414183,0.4491058,138.14,138.08,0.04578585]
[1767784414388,1.85953813,138.13,138.08,0.04578585]
[1767784414890,1.85953813,138.13,138.06,0.47140733]
[1767784415186,0.4491058,138.12,138.09,0.05514969]
[1767784424492,0.4491058,138.12,138.06,0.47140733]
[1767784424687,0.49547611,138.12,138.06,0.47140733]
[1767784434909,49.01022139,138.21,138.06,0.47140733]
[1767784435102,1.41043233,138.15,138.08,0.52631807]
[1767784435302,1.41043233,138.15,138.08,0.47140733]
[1767784436311,1.41043233,138.15,138.1,0.05189743]
[1767784437003,0.4491058,138.14,138.1,0.05189743]
[1767784446118,0.4515664,138.12,138.05,0.45744576]
[1767784447517,0.04885394,138.1,138.05,0.45744576]
[1767784455319,0.48694058,138.16,138.06,0.46393754]
[1767784455526,0.48694058,138.16,138.06,0.51372752]
[1767784456125,0.48694058,138.16,138.07,0.46393754]
[1767784460328,0.48694058,138.16,138.1,0.04699533]
[1767784480331,0.48694058,138.16,138.06,0.48642147]
[1767784480529,0.4658582,138.13,138.06,0.48642147]
[1767784481743,0.05278893,138.11,138.06,0.48642147]
[1767784503158,0.49583051,138.18,138.06,0.48642147]
[1767784506855,0.49583051,138.16,138.06,0.48642147]
[1767784508458,0.49583051,138.16,138.1,0.05231496]
[1767784509460,0.50841246,138.14,138.04,9.51564165]
[1767784509658,0.50841246,138.13,138.04,0.50165883]
[1767784510457,1.91998479,138.13,138.04,0.50165883]
[1767784510661,0.50841246,138.12,138.04,0.50165883]
[1767784510858,0.04934482,138.1,138.04,0.50165883]
[1767784513277,0.55775728,138.1,138.04,0.50165883]
[1767784517773,0.55775728,138.1,138.01,0.50165883]
[1767784518274,0.50841246,138.1,138.01,0.50165883]
[1767784518574,0.04744806,138.07,138.01,0.50165883]
[1767784519983,0.04744806,138.07,138.0,10.42555515]
[1767784519984,0.04744806,138.07,138.03,0.50165883]
[1767784530477,0.55586052,138.07,138.0,0.50165883]
[1767784537594,0.55586052,138.07,137.98,84.84]
[1767784537595,0.55586052,138.07,138.01,1.91936708]
[1767784537994,0.50841246,138.07,138.01,1.91936708]
[1767784538396,0.05044737,138.05,138.01,1.91936708]
[1767784538898,0.53417109,138.09,138.03,0.50779475]
[1767784539193,0.53417109,138.09,138.02,0.04608152]
[1767784539698,0.53417109,138.07,137.97,1.41157233]
[1767784540990,0.04683267,138.03,137.97,1.91936708]
[1767784541296,0.04683267,138.03,137.97,0.50779475]
[1767784541496,0.04683267,138.03,137.97,1.91936708]
[1767784542099,0.04683267,138.03,137.94,1.91936708]
[1767784542100,0.53417109,138.02,137.94,1.91936708]
[1767784542394,0.53417109,138.02,137.96,1.91936708]
[1767784542999,0.05425445,138.0,137.96,1.91936708]
[1767784543192,0.05425445,138.0,137.96,0.50779475]
[1767784543388,0.05425445,138.0,137.96,1.91936708]
[1767784546792,0.05425445,138.0,137.96,0.50779475]
[1767784552405,0.05425445,138.0,137.95,1.91936708]
[1767784552711,0.05425445,138.0,137.95,0.50779475]
[1767784553509,0.58842554,138.0,137.93,0.50779475]
[1767784554008,0.53417109,138.0,137.93,0.50779475]
[1767784554307,0.04823166,137.98,137.93,0.50779475]
[1767784555806,0.04823166,137.98,137.94,0.50779475]
[1767784559802,0.58240275,137.98,137.93,1.41157233]
[1767784560206,0.58240275,137.98,137.93,1.91936708]
[1767784563004,0.58240275,137.98,137.93,1.41157233]
[1767784563505,0.58240275,137.98,137.91,0.55666832]
[1767784563712,0.58240275,137.98,137.91,1.96824065]
[1767784566111,0.58240275,137.98,137.92,0.55800612]
[1767784567911,0.58240275,137.98,137.91,1.41157233]
[1767784568112,0.58240275,137.98,137.91,1.96957845]
[1767784570616,0.04823166,137.98,137.93,1.96957845]
[1767784570801,0.04823166,137.98,137.95,1.41157233]
[1767784571000,232.088,138.13,137.97,1.41157233]
[1767784571001,0.53901264,138.02,137.97,1.41157233]
[1767784572512,0.53901264,138.02,137.98,0.05415081]
[1767784578715,0.53901264,138.08,137.98,0.05415081]
[1767784579220,0.53901264,138.08,137.97,0.55800612]
[1767784579520,0.05444031,138.04,137.97,0.55800612]
[1767784579710,0.59345295,138.04,137.97,0.55800612]
[1767784589324,0.59345295,138.04,137.98,0.55800612]
[1767784589325,0.05444031,138.04,137.98,0.55800612]
[1767784618245,0.63249257,138.04,137.98,0.55800612]
[1767784620046,0.63249257,138.04,137.93,0.57049705]
[1767784620541,0.57805226,138.04,137.93,0.57049705]
[1767784620938,0.04826828,138.0,137.93,0.57049705]
[1767784622736,0.54180672,138.08,137.96,0.58379865]
[1767784624042,0.54180672,138.08,138.01,0.05120583]
[1767784625541,0.54180672,138.08,138.01,0.63500448]
[1767784626748,0.54180672,138.11,138.01,0.63500448]
[1767784627250,0.54180672,138.11,138.01,0.58379865]
[1767784627648,0.54180672,138.11,137.99,30.77398282]
[1767784627649,0.54180672,138.11,138.05,0.04701032]
[1767784630054,0.54180672,138.11,138.05,0.63080897]
[1767784630251,0.54180672,138.13,138.05,0.63080897]
[1767784630653,0.54180672,138.13,138.05,0.58379865]
[1767784631451,0.54180672,138.16,138.05,0.58379865]
[1767784632652,0.54180672,138.16,138.07,0.58379865]
[1767784637960,0.54180672,138.14,138.07,0.58379865]
[1767784646463,1.95241815,138.14,138.07,0.58379865]
[1767784646663,0.54180672,138.13,138.07,0.58379865]
[1767784649070,0.54180672,138.14,138.07,0.58379865]
[1767784652979,2.01136012,138.16,138.07,0.58379865]
[1767784653776,0.60074869,138.15,138.07,0.58379865]
[1767784663983,0.60074869,138.15,138.09,1.41061143]
[1767784667591,0.60074869,138.15,138.08,0.59292013]
[1767784667786,0.60074869,138.15,138.08,2.00353156]
[1767784675100,0.60074869,138.15,138.05,0.59292013]
[1767784675303,0.60074869,138.15,138.06,0.59292013]
[1767784676697,1.41061143,138.14,138.06,0.59292013]
[1767784676903,0.60074869,138.13,138.06,0.59292013]
[1767784677803,0.60074869,138.13,138.04,0.59292013]
[1767784679206,0.60074869,138.11,138.04,0.59292013]
[1767784680203,0.60074869,138.09,138.02,0.59292013]
[1767784681008,0.60074869,138.09,138.03,0.59292013]
[1767784690211,0.59544219,138.11,138.04,0.57383904]
[1767784690609,0.59544219,138.11,138.06,0.57383904]
[1767784691716,0.59544219,138.1,138.03,0.57383904]
[1767784691902,1.41061143,138.09,138.03,0.57383904]
[1767784692213,2.00605362,138.09,138.03,0.57383904]
[1767784692520,0.59544219,138.08,138.03,0.57383904]
[1767784692712,0.59544219,138.08,138.0,0.57383904]
[1767784701916,0.59544219,138.13,138.0,0.57383904]
[1767784707722,0.59544219,138.1,138.0,0.57383904]
[1767784714332,0.59544219,138.1,137.97,0.59249216]
[1767784723638,0.59965442,138.07,137.97,0.59249216]
[1767784729842,0.59965442,138.07,137.93,0.59249216]
[1767784737351,0.59965442,138.07,137.95,0.59249216]
[1767784737755,0.59965442,138.09,137.98,0.59249216]
[1767784746550,0.59965442,138.09,138.01,0.58686609]
[1767784748353,0.58505737,138.15,138.01,0.58686609]
[1767784748554,0.58505737,138.15,138.04,0.58686609]
[1767784750261,0.58505737,138.15,138.07,0.58686609]
[1767784763979,0.58505737,138.14,138.07,0.58686609]
[1767784766786,1.99593709,138.14,138.07,0.58686609]
[1767784767280,0.58505737,138.13,138.07,0.58686609]
[1767784774596,0.58505737,138.13,138.03,0.5834247]
[1767784776295,0.62432499,138.11,138.03,0.5834247]
[1767784783102,0.62432499,138.11,138.04,0.5834247]
[1767784792218,0.62432499,138.11,138.04,0.5834247]
[1767784801621,0.62432499,138.11,138.0,21.76]
[1767784801622,0.59101257,138.08,138.0,0.59708702]
[1767784802723,0.59101257,138.06,138.0,0.59708702]
[1767784802928,0.59101257,138.06,137.98,0.59708702]
[1767784803624,0.59101257,138.04,137.98,0.59708702]
[1767784804527,0.05061526,138.02,137.98,0.59708702]
[1767784806532,0.57248384,138.06,137.99,0.57110622]
[1767784807228,0.57248384,138.08,138.01,0.57110622]
[1767784811136,0.57248384,138.07,137.99,0.57110622]
[1767784815423,0.57248384,138.05,137.97,0.57110622]
[1767784836542,0.5704528,138.1,137.97,0.57110622]
[1767784836848,0.5704528,138.1,137.99,0.58069486]
[1767784837749,0.5704528,138.1,138.02,0.58069486]
[1767784853462,0.5704528,138.1,137.99,0.58069486]
[1767784866260,0.5704528,138.1,138.02,0.59391742]
[1767784867267,0.63457075,138.13,138.02,0.59391742]
[1767784867459,0.63457075,138.13,138.04,2.20777193]
[1767784867660,0.63457075,138.13,138.05,0.64509059]
[1767784880482,0.63457075,138.13,138.07,0.59185076]
[1767784881287,0.63457075,138.13,138.09,0.04592118]
[1767784890200,0.63457075,138.13,138.04,0.59185076]
[1767784890401,0.58947046,138.11,138.04,0.59185076]
[1767784891598,0.05150956,138.09,138.04,0.59185076]
[1767784899508,0.66615507,138.09,138.02,0.59495747]
[1767784902322,0.05150956,138.09,138.04,0.59495747]
[1767784902714,0.61464551,138.11,138.04,0.59495747]
[1767784902916,0.61464551,138.13,138.06,0.59495747]
[1767784903319,0.61464551,138.13,138.06,0.64202328]
[1767784909119,0.63486119,138.12,138.06,0.04706581]
[1767784914938,0.63486119,138.1,138.06,0.04706581]
[1767784915318,0.63486119,138.1,138.03,0.60937567]
[1767784915734,0.63486119,138.1,138.07,0.04649402]
[1767784915922,0.63486119,138.1,138.03,0.60937567]
[1767784916120,0.05265612,138.08,138.03,0.60937567]
[1767784923628,0.67328447,138.08,138.01,0.58760044]
[1767784924933,0.67328447,138.08,138.02,0.58760044]
[1767784927251,0.62062835,138.14,138.07,0.58760044]
[1767784927539,0.62062835,138.14,138.08,1.99847651]
[1767784928643,0.62062835,138.14,138.1,0.05063441]
[1767784947149,0.5936895,138.19,138.1,0.05063441]
[1767784947545,0.5936895,138.19,138.09,0.5860101]
[1767784948052,0.5936895,138.19,138.13,0.0468441]
[1767784948552,0.64043347,138.15,138.09,0.5860101]
[1767784950253,0.04674397,138.15,138.09,0.5860101]
[1767784953653,0.65721308,138.15,138.09,0.5860101]
[1767784956455,0.04674397,138.15,138.09,0.5860101]
[1767784961057,0.65721308,138.15,138.09,0.5860101]
[1767784965048,0.65721308,138.15,138.07,13.83641598]
[1767784968164,0.65721308,138.15,138.08,0.60307247]
[1767784970356,0.65721308,138.15,138.08,7.31351598]
[1767784974872,0.65721308,138.15,138.09,6.71044351]
[1767784975072,0.65721308,138.15,138.08,7.31351598]
[1767784975773,0.61046911,138.14,138.08,7.31351598]
[1767784975969,0.61046911,138.14,138.08,0.60307247]
[1767784981373,0.61046911,138.13,138.06,7.31351598]
[1767784981874,0.60403372,138.12,138.05,6.71044351]
[1767784982263,0.60403372,138.12,138.05,7.31103679]
[1767784982667,0.60403372,138.11,138.05,7.31103679]
[1767784983269,0.60403372,138.11,138.05,0.60059328]
[1767784983671,0.04678001,138.09,138.05,0.60059328]
[1767784997983,0.66438396,138.09,138.02,13.82153005]
[1767784998281,0.66438396,138.09,138.02,0.58578654]
[1767784999575,0.04678001,138.09,138.02,0.58578654]
[1767784999788,0.04678001,138.09,138.03,0.58578654]
[1767785000576,0.04678001,138.09,138.04,0.58578654]
[1767785005392,0.04678001,138.09,138.04,0.58578654]
[1767785016298,0.65334335,138.09,138.04,0.58578654]
[1767785020997,0.04678001,138.09,138.04,0.58578654]
[1767785021190,0.04678001,138.09,138.06,0.62090943]
[1767785035008,0.04678001,138.09,138.04,91.73044351]
[1767785035212,0.04678001,138.09,138.04,92.35135294]
[1767785036106,0.04678001,138.09,138.04,7.33135294]
[1767785041510,0.04678001,138.09,138.04,0.62090943]
[1767785046016,0.04678001,138.09,138.04,7.33135294]
[1767785047733,7.16090322,138.13,138.05,0.62877811]
[1767785047923,7.16090322,138.13,138.05,0.68138901]
[1767785048219,7.16090322,138.13,138.06,0.62877811]
[1767785049124,7.16090322,138.13,138.08,0.0493175]
[1767785051821,7.16090322,138.13,138.08,0.67809561]
[1767785053429,6.5206,138.13,138.08,0.67809561]
[1767785055426,0.64030322,138.14,138.08,0.67809561]
[1767785073842,6.5198,138.15,138.08,0.67809561]
[1767785074435,0.62544889,138.16,138.08,0.67809561]
[1767785074843,0.62544889,138.16,138.09,0.57276108]
[1767785075736,0.62544889,138.16,138.11,0.04782116]
[1767785076646,7.14464889,138.16,138.11,0.04782116]
[1767785076843,0.62544889,138.15,138.11,0.04782116]
[1767785082150,6.5192,138.16,138.11,0.62058224]
[1767785082653,7.14464889,138.16,138.11,0.62058224]
[1767785083950,0.62544889,138.15,138.11,0.04782116]
[1767785089647,7.14504889,138.15,138.11,0.04782116]
[1767785096457,0.62544889,138.13,138.08,85.02]
[1767785098064,0.04663708,138.12,138.08,85.59276108]
[1767785106865,0.67306803,138.12,138.07,6.71044351]
[1767785107066,0.67306803,138.12,138.07,91.73044351]
[1767785107374,0.67306803,138.12,138.07,92.31925954]
[1767785114175,0.67306803,138.12,138.07,85.60881603]
[1767785120574,0.04663708,138.12,138.08,0.58881603]
[1767785134184,6.5202,138.14,138.08,0.58881603]
[1767785134381,7.13747285,138.16,138.09,0.56448228]
[1767785135982,7.13747285,138.16,138.08,85.04]
[1767785135983,7.13747285,138.16,138.11,0.05009467]
[1767785136183,6.5193,138.16,138.11,0.61457695]
[1767785137285,7.13747285,138.16,138.11,0.61457695]
[1767785142198,0.61817285,138.15,138.11,0.05009467]
[1767785142903,0.61817285,138.14,138.11,0.05009467]
[1767785148393,6.5197,138.15,138.11,0.05009467]
[1767785148593,0.61817285,138.16,138.11,0.05009467]
[1767785150394,0.61817285,138.15,138.11,0.05009467]
[1767785155604,0.61817285,138.14,138.11,0.05009467]
[1767785156097,0.66570244,138.14,138.09,0.56448228]
[1767785157795,0.66570244,138.14,138.06,98.27404351]
[1767785157796,0.61817285,138.13,138.07,0.56448228]
[1767785160211,0.61817285,138.13,138.07,7.27492579]
[1767785162007,0.04752959,138.14,138.08,1.99652113]
[1767785162212,0.04752959,138.14,138.09,0.58547396]
[1767785169113,0.63624025,138.14,138.08,6.71044351]
[1767785169302,0.63624025,138.14,138.08,0.58547396]
[1767785170408,0.63624025,138.14,138.08,7.29591747]
[1767785176715,0.63624025,138.14,138.09,0.58547396]
[1767785180025,0.04752959,138.14,138.09,0.58547396]
[1767785180816,0.04752959,138.14,138.1,0.58547396]
[1767785191632,6.5188,138.17,138.12,0.58547396]
[1767785193037,0.58871066,138.18,138.12,0.58547396]
[1767785197136,7.10691066,138.18,138.12,0.58547396]
[1767785197537,0.56696691,138.17,138.12,0.58547396]
[1767785201737,7.08576691,138.17,138.12,0.58547396]
[1767785203234,6.5188,138.17,138.12,0.58547396]
[1767785203643,6.46758615,138.17,138.13,0.60634233]
[1767785206753,7.08466691,138.19,138.13,0.60634233]
[1767785207746,7.08466691,138.19,138.15,0.05503885]
[1767785208247,6.5183,138.18,138.15,0.05503885]
[1767785208439,7.08526691,138.18,138.15,0.05503885]
[1767785208634,0.56696691,138.17,138.12,85.04]
[1767785209054,7.08576691,138.17,138.12,85.04]
[1767785209847,0.56696691,138.16,138.12,85.04]
[1767785211546,0.56696691,138.15,138.09,92.35678584]
[1767785211739,0.56696691,138.15,138.1,0.60634233]
[1767785212442,0.05385536,138.14,138.1,0.60634233]
[1767785213856,0.62082227,138.14,138.09,91.75044351]
[1767785214058,0.62082227,138.14,138.09,85.04]
[1767785215156,0.62082227,138.14,138.09,85.64634233]
[1767785218254,0.62082227,138.14,138.09,0.60634233]
[1767785220047,0.05385536,138.14,138.09,0.60634233]
[1767785221545,6.5196,138.15,138.1,0.05281578]
[1767785221747,0.620739,138.14,138.1,0.05281578]
[1767785221947,0.620739,138.14,138.06,0.58499081]
[1767785222144,0.620739,138.13,138.04,8.95464792]
[1767785222348,0.620739,138.11,138.05,0.58499081]
[1767785222857,0.620739,138.09,138.04,70.89273343]
[1767785223063,0.620739,138.09,138.01,0.58499081]
[1767785223360,0.67524084,138.09,138.01,0.58499081]
[1767785225554,0.620739,138.08,138.01,0.58499081]
[1767785226456,0.04631882,138.06,138.01,0.58499081]
[1767785228668,6.5226,138.09,138.01,0.58499081]
[1767785228863,6.5226,138.09,138.03,0.58499081]
[1767785231466,7.143339,138.09,138.03,0.58499081]
[1767785232061,6.5226,138.09,138.03,0.58499081]
[1767785233262,0.620739,138.11,138.03,0.58499081]
[1767785234162,0.620739,138.11,138.06,0.04647395]
[1767785234563,0.620739,138.13,138.06,0.63146476]
[1767785242772,7.141339,138.13,138.06,0.63146476]
[1767785242979,0.620739,138.12,138.06,0.63146476]
[1767785243583,0.620739,138.11,138.06,0.04647395]
[1767785246480,0.620739,138.1,138.06,0.04647395]
[1767785246673,0.620739,138.09,138.02,0.58499081]
[1767785247073,7.143339,138.09,138.02,0.58499081]
[1767785248069,0.0490877,138.07,138.02,0.58499081]
[1767785251488,6.5724877,138.07,138.02,0.58499081]
[1767785257196,0.0490877,138.07,138.02,0.58499081]
[1767785262306,0.0490877,138.07,138.01,85.08]
[1767785262307,0.57130574,138.06,138.01,85.08]
[1767785262500,0.57130574,138.06,138.0,0.60845403]
[1767785263000,6.5244,138.05,138.0,0.60845403]
[1767785263205,0.57130574,138.04,137.98,0.60845403]
[1767785263907,0.05225331,138.02,137.98,0.60845403]